fUST/lending_fUST_20240116
["ID","MTS","AMOUNT","RATE_DAILY","PERIOD"]
[311792385,1705395039306,-151.0,0.00028922,2]
[311792387,1705395039315,-2454.74382412,0.00029,2]
[311792389,1705395039324,-155.77486132,0.00029,2]
[311792391,1705395039334,-500.0,0.00029043,2]
[311792393,1705395039343,-150.0,0.00029122,2]
[311792395,1705395039352,-150.295,0.00029122,2]
[311792397,1705395039362,-150.0,0.00029122,2]
[311792399,1705395039372,-154.04375427,0.00029151,2]
[311792401,1705395039380,-500.0,0.0002918,2]
[311792403,1705395039390,-500.0,0.00029317,2]
[311792405,1705395039399,-500.0,0.00029454,2]
[311792407,1705395039408,-620.00053764,0.00029469,2]
[311792409,1705395039417,-500.0,0.00029591,2]
[311792411,1705395039427,-342.48819433,0.00029728,2]
[311792413,1705395039436,-151.0,0.00029896,2]
[311792415,1705395039445,-280.0,0.00029984,15]
[311792416,1705395039455,-283.154918,0.00029999,2]
[311792418,1705395039465,-283.154918,0.00029999,2]
[311792420,1705395039475,-997.786189,0.00029999,2]
[311792422,1705395039485,-681.93949513,0.0003,3]
[311792424,1705395039495,-863.58,0.0003,2]
[311792426,1705395039504,-687.578808,0.0003,4]
[311792428,1705395039513,-155.0,0.0003,2]
[311792430,1705395039522,-1000.0,0.0003,2]
[311792432,1705395039531,-155.77495357,0.0003,4]
[311792434,1705395039540,-157.58234581,0.0003,4]
[311792437,1705395039552,-297.88447958,0.0003,4]
[311792438,1705395039561,-438.6008308,0.0003,5]
[311792440,1705395039571,-200.30831708,0.0003,4]
[311792442,1705395039581,-20774.94157507,0.0003,4]
[311792444,1705395039590,-640.52310595,0.0003,4]
[311792446,1705395039599,-3758.34471,0.0003,2]
[311792448,1705395039608,-2000.0,0.0003,2]
[311792450,1705395039618,-270.0,0.0003,2]
[311792452,1705395039627,-2000.0,0.0003001,2]
[311792454,1705395039636,-2000.0,0.0003002,2]
[311792456,1705395039645,-2000.0,0.0003003,2]
[311792458,1705395039654,-2000.0,0.0003004,2]
[311792460,1705395039662,-2000.0,0.0003005,2]
[311792462,1705395039672,-2000.0,0.0003006,2]
[311792464,1705395039681,-2000.0,0.0003007,2]
[311792466,1705395039690,-151.368128,0.0003007,2]
[311792468,1705395039699,-997.786189,0.0003007,2]
[311792470,1705395039708,-2000.0,0.0003008,2]
[311792472,1705395039717,-283.154918,0.0003008,2]
[311792474,1705395039726,-283.154918,0.0003008,2]
[311792476,1705395039735,-2000.0,0.0003009,2]
[311792478,1705395039744,-504.499014,0.000301,14]
[311792480,1705395039754,-3555.756626,0.000301,2]
[311792482,1705395039763,-154.04375427,0.00030101,7]
[311792484,1705395039771,-198.9082381,0.00030137,2]
[311792486,1705395039781,-198.9082381,0.00030137,2]
[311792488,1705395039790,-198.9082381,0.00030137,2]
[311792490,1705395039801,-198.9082381,0.00030137,2]
[311792492,1705395039809,-198.9082381,0.00030137,2]
[311792494,1705395039819,-198.9082381,0.00030137,2]
[311792495,1705395039828,-198.9082381,0.00030137,2]
[311792496,1705395039837,-198.9082381,0.00030137,2]
[311792498,1705395039846,-198.9082381,0.00030137,2]
[311792499,1705395039855,-198.9082381,0.00030137,2]
[311792500,1705395039865,-198.9082381,0.00030137,2]
[311792502,1705395039874,-198.9082381,0.00030137,2]
[311792504,1705395039883,-306.2535945,0.00030137,2]
[311792505,1705395039892,-153.0,0.00030137,2]
[311792506,1705395039903,-198.9082381,0.00030137,2]
[311792507,1705395039912,-306.2703506,0.00030137,2]
[311792508,1705395039921,-198.9082381,0.00030137,2]
[311792511,1705395039931,-198.9082381,0.00030137,2]
[311792512,1705395039940,-198.9082381,0.00030137,2]
[311792513,1705395039950,-198.9082381,0.00030137,2]
[311792514,1705395039959,-198.9082381,0.00030137,2]
[311792515,1705395039968,-153.0,0.00030137,2]
[311792516,1705395039977,-153.0,0.00030137,2]
[311792517,1705395039987,-198.9082381,0.00030137,2]
[311792518,1705395039997,-198.9082381,0.00030137,2]
[311792519,1705395040006,-198.9082381,0.00030137,2]
[311792520,1705395040016,-198.9082381,0.00030137,2]
[311792521,1705395040025,-198.9082381,0.00030137,2]
[311792522,1705395040034,-198.9082381,0.00030137,2]
[311792523,1705395040044,-198.9082381,0.00030137,2]
[311792524,1705395040053,-198.9082381,0.00030137,2]
[311792525,1705395040063,-198.9082381,0.00030137,2]
[311792526,1705395040072,-198.9082381,0.00030137,2]
[311792527,1705395040087,-198.9082381,0.00030137,2]
[311792528,1705395040102,-153.0,0.00030137,2]
[311792529,1705395040111,-153.0,0.00030137,2]
[311792530,1705395040122,-153.0,0.00030137,2]
[311792531,1705395040131,-155.0,0.00030137,2]
[311792532,1705395040141,-154.04375427,0.00030205,7]
[311792533,1705395040150,-165.95053937,0.00030447,7]
[311792534,1705395040160,-161.7286158,0.00030558,7]
[311792535,1705395040169,-409.0,0.000306,2]
[311792536,1705395040179,-2400.0,0.00030719,30]
[311792537,1705395040188,-2400.0,0.00030729,30]
[311792538,1705395040198,-2400.0,0.00030739,30]
[311792539,1705395040207,-6000.0,0.000308,2]
[311792540,1705395040217,-6000.0,0.000308,2]
[311792541,1705395040227,-154.04375427,0.00030842,7]
[311792542,1705395040236,-656.82045827,0.00030848,2]
[311792543,1705395040246,-2709.54021064,0.00030851,4]
[311792544,1705395040256,-3371.49807713,0.00030852,4]
[311792545,1705395040266,-2163.24295308,0.00030852,4]
[311792546,1705395040276,-997.786189,0.00030862,2]
[311792547,1705395040286,-50000.0,0.00030862,7]
[311792548,1705395040297,-151.0,0.00030863,2]
[311792549,1705395040308,-151.0,0.00030871,2]
[311792550,1705395040317,-752.16348973,0.0003098,2]
[311792551,1705395040327,-222.62309772,0.0003098,2]
[311792552,1705395040337,-766.78692931,0.0003098,2]
[311792553,1705395040347,-283.154918,0.00030999,2]
[311792554,1705395040357,-283.154918,0.00030999,2]
[311792555,1705395040366,-487.21595598,0.00030999,4]
[311792556,1705395040375,-500.0,0.00030999,4]
[311792557,1705395040385,-500.0,0.00030999,4]
[311792558,1705395040395,-609.27826206,0.00030999,4]
[311792559,1705395040405,-526.90794115,0.00030999,4]
[311792560,1705395040414,-500.0,0.00030999,4]
[311792561,1705395040424,-449.0134094,0.00030999,4]
[311792562,1705395040538,-500.0,0.00030999,4]
[311792563,1705395040550,-500.0,0.00030999,4]
[311792564,1705395040560,-500.0,0.00030999,4]
[311792565,1705395040569,-500.0,0.00030999,4]
[311792566,1705395040579,-345.11460587,0.00030999,4]
[311792567,1705395040588,-500.0,0.00030999,4]
[311792568,1705395040597,-500.0,0.00030999,4]
[311792569,1705395040607,-500.0,0.00030999,4]
[311792570,1705395040616,-500.0,0.00030999,4]
[311792571,1705395040625,-1451.97,0.00030999,2]
[311792572,1705395040635,-1451.97,0.00030999,2]
[311792573,1705395040644,-1451.97,0.00030999,2]
[311792574,1705395040653,-1451.97,0.00030999,2]
[311792575,1705395040663,-1451.97,0.00030999,2]
[311792576,1705395040672,-1451.97,0.00030999,2]
[311792577,1705395040682,-1451.97,0.00030999,2]
[311792578,1705395040691,-1451.97,0.00030999,2]
[311792579,1705395040700,-1451.97,0.00030999,2]
[311792580,1705395040709,-1451.97,0.00030999,2]
[311792581,1705395040719,-1000.0,0.00031,31]
[311792582,1705395040728,-96967.64815275,0.00031,4]
[311792583,1705395040737,-152.042525,0.00031,2]
[311792584,1705395040747,-283.154918,0.00031,2]
[311792585,1705395040757,-283.154918,0.00031,2]
[311792586,1705395040766,-997.786189,0.00031,2]
[311792587,1705395040775,-212.31827689,0.0003105,2]
[311792588,1705395040785,-159.78549536,0.00031069,2]
[311792589,1705395040794,-226.87514499,0.00031088,2]
[311792590,1705395040803,-1202.43826843,0.00031127,2]
[311792591,1705395040812,-3237.01067801,0.00031127,2]
[311792592,1705395040822,-154.04375427,0.00031242,7]
[311792593,1705395040832,-161.7286158,0.00031269,7]
[311792594,1705395040841,-154.04375427,0.00031385,7]
[311792595,1705395040851,-155.0,0.00031507,2]
[311792596,1705395040861,-154.04375427,0.00031626,7]
[311792597,1705395040872,-161.7286158,0.00031691,7]
[311792598,1705395040882,-257.5180873,0.00031703,7]
[311792599,1705395040891,-161.7286158,0.00031758,7]
[311792600,1705395040901,-154.04375427,0.00031819,7]
[311792601,1705395040911,-151.0,0.00031845,2]
[311792602,1705395040921,-155.45748656,0.00031966,2]
[311792603,1705395040931,-298.97508183,0.00031969,3]
[311792604,1705395040940,-241.97,0.00031989,30]
[311792605,1705395040950,-624.0866109,0.00031992,2]
[311792606,1705395040960,-465.24992729,0.00031998,4]
[311792607,1705395040970,-848.82727325,0.00031999,4]
[311792608,1705395040980,-1806.71620877,0.00031999,4]
[311792609,1705395040989,-64447.86296925,0.00032,15]
[311792610,1705395041000,-65095.85894628,0.00032,15]
[311792611,1705395041015,-3580.72887747,0.00032,15]
[311792624,1705395043485,-521.28547598,0.00027947,2]
[311792625,1705395043496,-500.0,0.00027947,2]
[311792626,1705395043507,-500.0,0.00027947,2]
[311792627,1705395043517,-500.0,0.00027947,2]
[311792628,1705395043528,-500.0,0.00027947,2]
[311792629,1705395043538,-255.4797091,0.00027947,2]
[311792630,1705395043550,-409.033326,0.00027947,2]
[311792631,1705395043560,-500.0,0.00027947,2]
[311792632,1705395043571,-500.0,0.00027947,2]
[311792633,1705395043581,-500.0,0.00027947,2]
[311792634,1705395043592,-500.0,0.00027947,2]
[311792635,1705395043602,-500.0,0.00027947,2]
[311792636,1705395043613,-396.44579481,0.00027947,2]
[311792667,1705395045256,-103.55420519,0.00027947,2]
[311792670,1705395045267,-500.0,0.00027947,2]
[311792672,1705395045280,-500.0,0.00027947,2]
[311792674,1705395045292,-500.0,0.00027947,2]
[311792677,1705395045304,-500.0,0.00027947,2]
[311792679,1705395045315,-500.0,0.00027947,2]
[311792681,1705395045327,-500.0,0.00027947,2]
[311792683,1705395045339,-500.0,0.00027947,2]
[311792685,1705395045349,-655.34549406,0.00027947,2]
[311792686,1705395045362,-500.0,0.00027947,2]
[311792687,1705395045373,-655.34549406,0.00027947,2]
[311792688,1705395045384,-655.34549406,0.00027947,2]
[311792689,1705395045394,-655.34549406,0.00027947,2]
[311792690,1705395045403,-655.34549406,0.00027947,2]
[311792691,1705395045415,-500.0,0.00027947,2]
[311792692,1705395045424,-655.34549406,0.00027947,2]
[311792693,1705395045433,-655.34549406,0.00027947,2]
[311792694,1705395045442,-655.34549406,0.00027947,2]
[311792695,1705395045451,-500.0,0.00027947,2]
[311792696,1705395045544,-655.34549406,0.00027947,2]
[311792697,1705395045586,-519.23409661,0.00027947,2]
[311792698,1705395045595,-655.34549406,0.00027947,2]
[311792699,1705395045604,-655.34549406,0.00027947,2]
[311792700,1705395045613,-655.34549406,0.00027947,2]
[311792701,1705395045623,-655.34549406,0.00027947,2]
[311792702,1705395045632,-655.34549406,0.00027947,2]
[311792703,1705395045641,-655.34549406,0.00027947,2]
[311792704,1705395045651,-655.34549406,0.00027947,2]
[311792705,1705395045660,-655.34549406,0.00027947,2]
[311792706,1705395045669,-655.34549406,0.00027947,2]
[311792707,1705395045679,-500.0,0.00027947,2]
[311792708,1705395045689,-655.34549406,0.00027947,2]
[311792709,1705395045698,-655.34549406,0.00027947,2]
[311792710,1705395045708,-388.24214006,0.00027947,2]
[311792711,1705395045719,-655.34549406,0.00027947,2]
[311792712,1705395045729,-655.34549406,0.00027947,2]
[311792713,1705395045738,-655.34549406,0.00027947,2]
[311792714,1705395045747,-655.34549406,0.00027947,2]
[311792715,1705395045756,-655.34549406,0.00027947,2]
[311792716,1705395045765,-655.34549406,0.00027947,2]
[311792717,1705395045774,-655.34549406,0.00027947,2]
[311792718,1705395045783,-655.34549406,0.00027947,2]
[311792719,1705395045793,-655.34549406,0.00027947,2]
[311792720,1705395045805,-655.34549406,0.00027947,2]
[311792721,1705395045815,-655.34549406,0.00027947,2]
[311792722,1705395045824,-997.786189,0.00027948,2]
[311792723,1705395045833,-997.786189,0.00027948,2]
[311792724,1705395045842,-997.786189,0.00029999,2]
[311792725,1705395045852,-997.786189,0.0003007,2]
[311792726,1705395045862,-997.786189,0.00030862,2]
[311792727,1705395045872,-3154.9,0.0003099,3]
[311792728,1705395045882,-997.786189,0.00031,2]
[311792729,1705395045892,-264211.98019925,0.00032,15]
[311792730,1705395045904,-42761.19547117,0.00032,15]
[311792787,1705395780704,-2531.61,0.00021379,3]
[311792788,1705395780726,-329.183235,0.00021386,2]
[311792789,1705395780747,-861.6446352,0.00021387,2]
[311792790,1705395780768,-154.98450155,0.00021387,2]
[311792791,1705395780788,-1695.03946883,0.00021387,2]
[311792792,1705395780808,-13706.10600457,0.00021387,2]
[311792793,1705395780828,-2711.18525978,0.00021388,2]
[311792794,1705395780848,-154.98450155,0.00021388,2]
[311792795,1705395780869,-11533.26239352,0.00021388,2]
[311792796,1705395834073,1467.59803436,0.0001603,2]
[311792797,1705395842362,759.01187369,0.00019236,2]
[311792805,1705395858600,8752.33712952,0.00020746,2]
[311792807,1705395874596,8742.21122469,0.00020746,2]
[311792808,1705395887481,-175.0415776,0.00021145,2]
[311792809,1705395887503,-15897.44232842,0.00021146,2]
[311792810,1705395887523,-260.84774235,0.00021146,2]
[311792811,1705395887545,-154.98450155,0.00021146,2]
[311792812,1705395887568,-253.82439799,0.00021146,2]
[311792813,1705395887591,-166.80011479,0.00021146,2]
[311792814,1705395887616,-795.56,0.00021146,3]
[311792815,1705395887638,-2032.26842412,0.00021147,2]
[311792816,1705395887659,-1739.01951288,0.00021147,2]
[311792817,1705395887684,-166.49194019,0.00021147,2]
[311792818,1705395887704,-154.98450155,0.00021147,2]
[311792819,1705395887725,-1252.01139802,0.00021147,2]
[311792820,1705395887750,-1051.31,0.00021148,3]
[311792821,1705395887770,-876.09,0.00021148,3]
[311792822,1705395887791,-2705.10797595,0.00021155,5]
[311792823,1705395887813,-19173.10109535,0.00021155,2]
[311792824,1705395887841,-266.94660645,0.00021155,2]
[311792825,1705395887870,-875.47285714,0.00021156,2]
[311792826,1705395887894,-403.00506807,0.00021156,2]
[311792827,1705395887918,-154.98450155,0.00021156,2]
[311792828,1705395887944,-2036.92665064,0.00021156,2]
[311792829,1705395887972,-286.06712723,0.00021156,2]
[311792830,1705395887998,-3481.93045804,0.00021156,2]
[311792831,1705395888020,-154.98450155,0.00021156,2]
[311792832,1705395888046,-81129.55401684,0.00021156,2]
[311792833,1705395888074,-587.69337227,0.00021157,2]
[311792834,1705395888100,-154.98450155,0.00021157,2]
[311792835,1705395888125,-616.12530775,0.00021157,2]
[311792836,1705395888147,-3741.87136759,0.00021157,2]
[311792837,1705395888175,-160.83818793,0.00021157,2]
[311792838,1705395888202,-1241.19175274,0.00021157,2]
[311792839,1705395888228,-23837.87564002,0.00021157,2]
[311792840,1705395888254,-242.84740802,0.00021157,2]
[311792841,1705395888281,-2711.18525978,0.00021158,2]
[311792842,1705395888306,-154.98450155,0.00021158,2]
[311792843,1705395888334,-154.98450155,0.00021158,2]
[311792844,1705395888359,-329.183235,0.00021158,2]
[311792845,1705395888381,-15204.41172658,0.00021158,2]
[311792847,1705395888404,-178.71425151,0.00021158,2]
[311792848,1705395888431,-521.56474162,0.00021158,2]
[311792849,1705395888455,-156.78271178,0.00021158,2]
[311792850,1705395888484,-13706.10600457,0.00021158,2]
[311792851,1705395888509,-2145.89822992,0.00021158,2]
[311792852,1705395893848,342.75344633,0.00020746,2]
[311792853,1705395896792,169877.52293289,0.00020746,2]
[311792854,1705395896821,113989.46609546,0.00020746,2]
[311792855,1705395898203,200.0,0.00020746,2]
[311792856,1705395898317,305.93101275,0.00020746,2]
[311792857,1705395899082,620.05138771,0.00020746,2]
[311792858,1705395899769,3481.93045804,0.0002073,2]
[311792859,1705395900086,2081.95506877,0.00020746,2]
[311792860,1705395900328,23837.87564002,0.00020942,2]
[311792861,1705395901908,154.98450155,0.00020746,2]
[311792862,1705395902502,300.0,0.00020746,2]
[311792863,1705395904707,1274.86341873,0.00020746,2]
[311792864,1705395904798,154.98450155,0.00020746,2]
[311792865,1705395906939,154.98450155,0.00020746,2]
[311792866,1705395910452,1261.88614,0.00020746,2]
[311792867,1705395911220,10290.39182557,0.00020746,2]
[311792868,1705395912318,260.45482621,0.00020746,2]
[311792869,1705395913098,620.05138771,0.00020746,2]
[311792870,1705395914201,200.0,0.00020746,2]
[311792871,1705395914788,265682.63145631,0.00020746,2]
[311792872,1705395914815,18184.35757204,0.00020746,2]
[311792873,1705395916103,154.98450155,0.00019027,3]
[311792874,1705395916433,23837.87564002,0.0002093,2]
[311792875,1705395917772,2022.57729392,0.00020718,2]
[311792876,1705395917847,342.75344633,0.00020746,2]
[311792877,1705395918076,2081.95506877,0.00020746,2]
[311792878,1705395918507,300.0,0.00020746,2]
[311792879,1705395919905,156.91760523,0.00020746,2]
[311792880,1705395922801,155.4796896,0.00020746,2]
[311792881,1705395924703,1274.86341873,0.00020746,2]
[311792882,1705395925218,1643.22026536,0.00020746,2]
[311792883,1705395925248,8647.17156021,0.00020746,2]
[311792884,1705395926932,154.98450155,0.00020746,2]
[311792885,1705395930461,1012.69935984,0.00020746,2]
[311792886,1705395930487,249.18678016,0.00020746,2]
[311792887,1705395932295,200.0,0.00020746,2]
[311792888,1705395934791,9550.81321984,0.00020746,2]
[311792889,1705395943627,2227.65,0.00020736,3]
[311792909,1705395953962,1617.36549845,0.00020736,3]
[311792940,1705395973080,10000.0,0.0001974,2]
[311792941,1705395973109,10000.0,0.0001974,2]
[311792942,1705395973137,4900.0,0.0001974,2]
[311792945,1705396000115,154.98450155,0.00018658,3]
[311792946,1705396018348,342.75344633,0.0001974,2]
[311792947,1705396019312,4602.26205212,0.0001974,2]
[311792948,1705396019341,10000.0,0.0001974,2]
[311792949,1705396019478,10000.0,0.0001974,2]
[311792950,1705396019507,10000.0,0.0001974,2]
[311792951,1705396019536,249264.72697623,0.0001974,2]
[311792952,1705396023598,620.05138771,0.0001974,2]
[311792953,1705396024974,115.22163606,0.0001974,2]
[311792954,1705396025002,1146.66450394,0.0001974,2]
[311792955,1705396025737,8853.33549606,0.0001974,2]
[311792956,1705396025761,1437.05632951,0.0001974,2]
[311792957,1705396027450,154.98450155,0.0001974,2]
[311792958,1705396028184,1274.86341873,0.0001974,2]
[311792959,1705396035298,197133.09575021,0.0001974,2]
[311792960,1705396043837,-4709.0,0.0001974,2]
[311792970,1705396126142,-154.98450155,0.00019174,2]
[311792971,1705396126163,-155.01549845,0.00019174,2]
[311792973,1705396140775,250.0,0.00018177,2]
[311792974,1705396142171,154.98450155,0.00017256,3]
[311792978,1705396158146,154.98450155,0.00017254,3]
[311792980,1705396171110,-561.04928644,0.00019167,2]
[311792981,1705396171131,-893.01549117,0.00019167,2]
[311792982,1705396175497,1261.88614,0.00017254,2]
[311792983,1705396176268,3178.1448569,0.00017254,2]
[311792984,1705396176409,7112.24696867,0.00017254,2]
[311792985,1705396181323,452.21175221,0.00017253,2]
[311792986,1705396181892,687.23089543,0.00017253,2]
[311792987,1705396182118,620.05138771,0.00017254,2]
[311792988,1705396182906,1128.25899598,0.00017253,2]
[311792989,1705396182939,18718.26996216,0.00017253,2]
[311792990,1705396194259,4293.84704772,0.00017254,2]
[311792991,1705396195499,1327.10170858,0.00017254,2]
[311792992,1705396204124,618.89291521,0.00017254,2]
[311792993,1705396223689,976.79905731,0.00017246,2]
[311793035,1705396232649,-2036.92665064,0.00019159,2]
[311793036,1705396232659,-154.98450155,0.00019159,2]
[311793037,1705396232669,-253.82439799,0.0001916,2]
[311793038,1705396232678,-154.98450155,0.0001916,2]
[311793039,1705396232687,-15204.41172658,0.0001916,2]
[311793043,1705396232790,-154.98450155,0.0001916,2]
[311793044,1705396232800,-18884.79760458,0.0001916,2]
[311793045,1705396232814,-329.183235,0.0001916,2]
[311793047,1705396232823,-1739.01951288,0.0001916,2]
[311793049,1705396232833,-154.98450155,0.00019161,2]
[311793050,1705396232842,-7995.1019034,0.00019161,2]
[311793051,1705396232854,-262.04802142,0.00019161,2]
[311793052,1705396232863,-521.56474162,0.00019161,2]
[311793053,1705396232873,-2032.26842412,0.00019161,2]
[311793054,1705396232883,-1222.43070975,0.00019161,2]
[311793055,1705396232893,-301.60613848,0.00019161,2]
[311793056,1705396232902,-154.98450155,0.00019161,2]
[311793057,1705396232912,-322.7629785,0.00019161,2]
[311793058,1705396232921,-1222.89726893,0.00019161,2]
[311793059,1705396232930,-309.92252015,0.00019161,2]
[311793060,1705396232939,-521.09377722,0.00019162,2]
[311793061,1705396232949,-470.14941068,0.00019162,2]
[311793062,1705396232958,-286.06712723,0.00019162,2]
[311793063,1705396232968,-5178.14619186,0.00019162,2]
[311793064,1705396232977,-400.44492458,0.00019162,2]
[311793065,1705396232986,-154.98450155,0.00019162,2]
[311793066,1705396232995,-875.47285714,0.00019162,2]
[311793067,1705396233004,-1252.01139802,0.00019162,2]
[311793068,1705396233013,-260.84774235,0.00019163,2]
[311793069,1705396233023,-160.83818793,0.00019163,2]
[311793070,1705396233034,-1991.47489768,0.00019163,2]
[311793071,1705396233043,-861.6446352,0.00019163,2]
[311793072,1705396233052,-1292.34076145,0.00019163,2]
[311793073,1705396233061,-361.0943622,0.00019163,2]
[311793074,1705396233071,-20853.11941142,0.00019163,2]
[311793075,1705396233080,-199.02506767,0.00019163,2]
[311793076,1705396233089,-156.78271178,0.00019163,2]
[311793077,1705396233098,-403.00506807,0.00019163,2]
[311793078,1705396233107,-81129.55401684,0.00019163,2]
[311793079,1705396233117,-587.69337227,0.00019163,2]
[311793080,1705396233126,-15897.44232842,0.00019163,2]
[311793081,1705396233134,-242.84740802,0.00019164,2]
[311793082,1705396233143,-36924.85068782,0.00019164,2]
[311793083,1705396233152,-154.98450155,0.00019164,2]
[311793084,1705396233161,-154.98450155,0.00019164,2]
[311793085,1705396233170,-616.12530775,0.00019164,2]
[311793086,1705396233178,-154.98450155,0.00019164,2]
[311793087,1705396233187,-13706.10600457,0.00019164,2]
[311793088,1705396233196,-154.98450155,0.00019164,2]
[311793089,1705396233205,-154.98450155,0.00019164,2]
[311793090,1705396233213,-154.98450155,0.00019164,2]
[311793091,1705396233222,-272.26259732,0.00019164,2]
[311793092,1705396233230,-594.52127713,0.00019164,2]
[311793093,1705396233239,-166.80011479,0.00019164,2]
[311793094,1705396233248,-154.98450155,0.00019164,2]
[311793095,1705396233257,-3741.87136759,0.00019164,2]
[311793096,1705396233266,-213.18676181,0.00019165,2]
[311793097,1705396233274,-260.58050209,0.00019165,2]
[311793098,1705396233284,-191.21026172,0.00019165,2]
[311793099,1705396233294,-2711.18525978,0.00019165,2]
[311793100,1705396233303,-154.98450155,0.00019165,2]
[311793101,1705396233312,-902.59064044,0.00019165,2]
[311793102,1705396233320,-7951.66166768,0.00019165,2]
[311793103,1705396233329,-175.0415776,0.00019165,2]
[311793104,1705396233338,-170.68674597,0.00019165,2]
[311793105,1705396233346,-526.17799726,0.00019165,2]
[311793106,1705396233355,-154.98450155,0.00019165,2]
[311793107,1705396233364,-1031.74114823,0.00019166,2]
[311793108,1705396233373,-1577.62749715,0.00019166,2]
[311793109,1705396233382,-178.71425151,0.00019166,2]
[311793110,1705396233391,-1695.03946883,0.00019166,2]
[311793111,1705396233399,-679.38970446,0.00019167,2]
[311793112,1705396233408,-560.70281146,0.00019167,2]
[311793113,1705396233417,-3367.184526,0.00019167,2]
[311793114,1705396233426,-611.72852598,0.00019167,2]
[311793115,1705396233434,-452.00240953,0.00019167,2]
[311793116,1705396233443,-167.394408,0.00019178,2]
[311793117,1705396233452,-415.27970348,0.00019609,2]
[311793118,1705396233461,-306.95623254,0.00019695,2]
[311793119,1705396233470,-1287.04868828,0.00019696,2]
[311793120,1705396233479,-3227.0435712,0.0001971,2]
[311793121,1705396233487,-27530.32848659,0.0001974,2]
[311793122,1705396233496,-346.01057074,0.0001974,2]
[311793123,1705396233505,-827.27851965,0.0001974,2]
[311793124,1705396233514,-158.27916685,0.0001974,2]
[311793125,1705396233522,-849.23126021,0.0002,2]
[311793126,1705396233531,-20502.44875236,0.00020723,2]
[311793127,1705396233540,-309.95350775,0.00020731,2]
[311793128,1705396233549,-19672.51156169,0.00020742,2]
[311793129,1705396233558,-154.98450155,0.00020743,2]
[311793130,1705396233567,-155.42105782,0.00020743,2]
[311793131,1705396233575,-160.89070788,0.00020744,2]
[311793132,1705396233584,-1630.28719785,0.00020746,2]
[311793133,1705396233593,-155.07556836,0.00020746,2]
[311793134,1705396233602,-326.67061456,0.00021,2]
[311793135,1705396233611,-200.0,0.00021084,2]
[311793136,1705396233620,-500.0,0.000211,2]
[311793137,1705396233628,-154.98450155,0.0002114,2]
[311793138,1705396233637,-1238.51362465,0.00021143,2]
[311793139,1705396233646,-159.14824941,0.00021143,2]
[311793140,1705396233655,-154.98450155,0.00021155,2]
[311793141,1705396233663,-155.04142511,0.00021155,2]
[311793142,1705396233672,-155.73414115,0.00021157,2]
[311793143,1705396233681,-159.11611963,0.00021157,2]
[311793144,1705396233690,-162.90595907,0.00021373,2]
[311793145,1705396233699,-155.23732771,0.00021386,2]
[311793146,1705396233708,-164.40026332,0.00021388,2]
[311793147,1705396233717,-166.666666,0.00021918,2]
[311793148,1705396233725,-154.98450155,0.00021993,2]
[311793149,1705396233734,-157.3359187,0.00022,2]
[311793150,1705396233743,-425.34837196,0.00022,2]
[311793151,1705396233751,-415.27970346,0.00022132,2]
[311793152,1705396233761,-166.666666,0.00022431,2]
[311793153,1705396233769,-166.666666,0.00022944,2]
[311793154,1705396233778,-280.0,0.00023192,7]
[311793155,1705396233787,-166.666666,0.00023456,2]
[311793156,1705396233798,-154.98450155,0.000235,2]
[311793157,1705396233807,-166.666666,0.00023969,2]
[311793158,1705396233817,-4009.14861616,0.00024,2]
[311793159,1705396233826,-166.666666,0.00024482,2]
[311793160,1705396233835,-415.27970346,0.00024654,2]
[311793161,1705396233844,-204.3118027,0.00024658,2]
[311793162,1705396233853,-497.68470195,0.0002495,5]
[311793163,1705396233862,-4716.82638211,0.00025,2]
[311793164,1705396233871,-154.98450155,0.00025,2]
[311793165,1705396233880,-200.0,0.00025479,2]
[311793166,1705396233890,-391.0,0.00025511,7]
[311793167,1705396233899,-289.85545354,0.00027,2]
[311793168,1705396233908,-461.1686624,0.00027,2]
[311793169,1705396233917,-415.27970346,0.00027177,2]
[311793170,1705396233927,-155.0,0.00027397,2]
[311793171,1705396233936,-500.0,0.00027397,2]